[Event "Early-Titled-Tuesday-Blitz-January-16-2024"]
[Site "Chess.com"]
[Date "2024.01.16"]
[Round "3"]
[White "AlexTruskavetsky"]
[Black "bancsoo"]
[Result "0-1"]
[WhiteElo "2688"]
[BlackElo "2929"]
[TimeControl "180+1"]
[EndTime "8:28:53 PST"]
[Termination "bancsoo won on time"]

1. d4 {[%clk 0:03:00.9]} 1... d5 {[%clk 0:02:59.7]} 2. c4 {[%clk 0:02:59.8]}
2... c6 {[%clk 0:02:59.9]} 3. Nf3 {[%clk 0:02:58.9]} 3... Nf6 {[%clk 0:03:00]}
4. Nc3 {[%clk 0:02:58.9]} 4... dxc4 {[%clk 0:02:57.9]} 5. e4 {[%clk 0:02:58.7]}
5... b5 {[%clk 0:02:58]} 6. Be2 {[%clk 0:02:58.3]} 6... e6 {[%clk 0:02:57.7]} 7.
O-O {[%clk 0:02:57.6]} 7... Bb7 {[%clk 0:02:58.4]} 8. Rb1 {[%clk 0:02:56.9]}
8... Qc7 {[%clk 0:02:58.1]} 9. b3 {[%clk 0:02:34.9]} 9... b4 {[%clk 0:02:56.7]}
10. e5 {[%clk 0:02:34.8]} 10... Nd5 {[%clk 0:02:55.7]} 11. Nxd5 {[%clk
0:02:34.5]} 11... cxd5 {[%clk 0:02:55.8]} 12. bxc4 {[%clk 0:02:33.7]} 12... dxc4
{[%clk 0:02:56.2]} 13. Bg5 {[%clk 0:02:08.1]} 13... h6 {[%clk 0:02:53.8]} 14.
Bh4 {[%clk 0:02:07.3]} 14... Nd7 {[%clk 0:02:53.5]} 15. Qa4 {[%clk 0:01:56.8]}
15... a5 {[%clk 0:02:40.4]} 16. Rfc1 {[%clk 0:01:54.3]} 16... c3 {[%clk
0:02:35]} 17. Bb5 {[%clk 0:01:46.8]} 17... g5 {[%clk 0:02:24.6]} 18. Bg3 {[%clk
0:01:39.8]} 18... Bd5 {[%clk 0:02:17.5]} 19. a3 {[%clk 0:01:36.3]} 19... Be7
{[%clk 0:01:57.5]} 20. Ne1 {[%clk 0:01:13.5]} 20... Rb8 {[%clk 0:01:34.2]} 21.
Nc2 {[%clk 0:01:02]} 21... Qb7 {[%clk 0:01:31.7]} 22. Bxd7+ {[%clk 0:00:58.6]}
22... Qxd7 {[%clk 0:01:31.5]} 23. Qxa5 {[%clk 0:00:56.5]} 23... b3 {[%clk
0:01:27.5]} 24. Ne3 {[%clk 0:00:48.5]} 24... c2 {[%clk 0:00:56.3]} 25. Nxd5
{[%clk 0:00:20.3]} 25... cxb1=Q {[%clk 0:00:44.8]} 26. Nc7+ {[%clk 0:00:19.5]}
26... Kf8 {[%clk 0:00:43.1]} 27. Rxb1 {[%clk 0:00:19.1]} 27... Kg7 {[%clk
0:00:33.6]} 28. d5 {[%clk 0:00:18.8]} 28... Rhc8 {[%clk 0:00:26.3]} 29. d6
{[%clk 0:00:18.4]} 29... Bd8 {[%clk 0:00:26.8]} 30. f4 {[%clk 0:00:12.9]} 30...
Bxc7 {[%clk 0:00:26.7]} 31. dxc7 {[%clk 0:00:12.8]} 31... Qxc7 {[%clk
0:00:27.3]} 32. Qd2 {[%clk 0:00:10.8]} 32... Qc2 {[%clk 0:00:27.2]} 33. Qe1
{[%clk 0:00:10]} 33... b2 {[%clk 0:00:27.5]} 34. fxg5 {[%clk 0:00:10]} 34...
Qxb1 {[%clk 0:00:27.3]} 35. gxh6+ {[%clk 0:00:08.7]} 35... Kh8 {[%clk
0:00:27.8]} 0-1

[Event "Early-Titled-Tuesday-Blitz-January-16-2024"]
[Site "Chess.com"]
[Date "2024.01.16"]
[Round "3"]
[White "SergioMoralesG"]
[Black "DDTerziev04"]
[Result "1-0"]
[WhiteElo "2439"]
[BlackElo "2156"]
[TimeControl "180+1"]
[EndTime "8:28:54 PST"]
[Termination "SergioMoralesG won on time"]

1. d4 {[%clk 0:01:27]} 1... Nf6 {[%clk 0:02:57.9]} 2. c4 {[%clk 0:01:27.5]} 2...
g6 {[%clk 0:02:57.7]} 3. Nc3 {[%clk 0:01:27]} 3... Bg7 {[%clk 0:02:57.5]} 4. e4
{[%clk 0:01:26.6]} 4... d6 {[%clk 0:02:58.1]} 5. Nf3 {[%clk 0:01:26.8]} 5... O-O
{[%clk 0:02:58]} 6. Be2 {[%clk 0:01:27.4]} 6... e5 {[%clk 0:02:56.1]} 7. Be3
{[%clk 0:01:27.7]} 7... Nc6 {[%clk 0:02:55.5]} 8. d5 {[%clk 0:01:28]} 8... Ne7
{[%clk 0:02:56.1]} 9. Nd2 {[%clk 0:01:28.5]} 9... Nd7 {[%clk 0:02:55.7]} 10. b4
{[%clk 0:01:27.5]} 10... f5 {[%clk 0:02:53.4]} 11. f3 {[%clk 0:01:27]} 11... Nf6
{[%clk 0:02:36.9]} 12. c5 {[%clk 0:01:25.7]} 12... f4 {[%clk 0:02:29.7]} 13. Bf2
{[%clk 0:01:25.6]} 13... g5 {[%clk 0:02:29.5]} 14. h3 {[%clk 0:01:25.9]} 14...
Ng6 {[%clk 0:02:29.4]} 15. cxd6 {[%clk 0:01:23.6]} 15... cxd6 {[%clk 0:02:28.5]}
16. Rc1 {[%clk 0:01:24]} 16... Rf7 {[%clk 0:02:27]} 17. Nb5 {[%clk 0:01:23.9]}
17... Bf8 {[%clk 0:02:25.8]} 18. Nxa7 {[%clk 0:01:16.9]} 18... Bd7 {[%clk
0:02:20.5]} 19. a4 {[%clk 0:01:16.9]} 19... h5 {[%clk 0:02:08]} 20. a5 {[%clk
0:01:16.1]} 20... Rg7 {[%clk 0:02:01.4]} 21. Nb5 {[%clk 0:01:15.3]} 21... Nh8
{[%clk 0:01:35.9]} 22. Nc7 {[%clk 0:01:13.4]} 22... Rc8 {[%clk 0:01:34.7]} 23.
Ne6 {[%clk 0:01:13.6]} 23... Bxe6 {[%clk 0:01:30.8]} 24. dxe6 {[%clk 0:01:14.5]}
24... Rxc1 {[%clk 0:01:28.4]} 25. Qxc1 {[%clk 0:01:15.4]} 25... Rc7 {[%clk
0:01:24.1]} 26. Qd1 {[%clk 0:01:12.3]} 26... Qc8 {[%clk 0:01:01.3]} 27. O-O
{[%clk 0:01:07.4]} 27... Ng6 {[%clk 0:00:39.1]} 28. Qb3 {[%clk 0:01:05.8]} 28...
Be7 {[%clk 0:00:37.3]} 29. b5 {[%clk 0:01:02.5]} 29... Rc3 {[%clk 0:00:20.6]}
30. Qb1 {[%clk 0:00:58.2]} 30... Kg7 {[%clk 0:00:18.2]} 31. a6 {[%clk
0:00:58.1]} 31... bxa6 {[%clk 0:00:17.3]} 32. bxa6 {[%clk 0:00:59]} 32... Rc7
{[%clk 0:00:13.5]} 33. a7 {[%clk 0:00:55.2]} 33... Qa8 {[%clk 0:00:12.6]} 34.
Qb6 {[%clk 0:00:50.6]} 34... Ne8 {[%clk 0:00:09.8]} 35. Qb8 {[%clk 0:00:46.7]}
35... Rc8 {[%clk 0:00:08.8]} 36. Qxa8 {[%clk 0:00:45.9]} 36... Rxa8 {[%clk
0:00:09.7]} 37. Rb1 {[%clk 0:00:44.8]} 37... Nf8 {[%clk 0:00:05.1]} 38. Rb8
{[%clk 0:00:43.9]} 38... Nc7 {[%clk 0:00:04.9]} 39. Rb7 {[%clk 0:00:42.7]} 39...
Nfxe6 {[%clk 0:00:04.4]} 40. Bc4 {[%clk 0:00:42.6]} 40... Kf6 {[%clk 0:00:03.3]}
41. Bb6 {[%clk 0:00:42.2]} 41... Ne8 {[%clk 0:00:01.1]} 42. Bxe6 {[%clk
0:00:38.2]} 1-0

[Event "Early-Titled-Tuesday-Blitz-January-16-2024"]
[Site "Chess.com"]
[Date "2024.01.16"]
[Round "3"]
[White "Iskusnyh"]
[Black "Tolyanius"]
[Result "1-0"]
[WhiteElo "2656"]
[BlackElo "2459"]
[TimeControl "180+1"]
[EndTime "8:28:55 PST"]
[Termination "Iskusnyh won by resignation"]

1. d4 {[%clk 0:02:58]} 1... Nf6 {[%clk 0:03:00]} 2. c4 {[%clk 0:02:57.3]} 2...
c5 {[%clk 0:03:00.6]} 3. d5 {[%clk 0:02:56.8]} 3... b5 {[%clk 0:03:01.3]} 4.
cxb5 {[%clk 0:02:56.2]} 4... a6 {[%clk 0:03:02]} 5. e3 {[%clk 0:02:55.2]} 5...
axb5 {[%clk 0:02:55.6]} 6. Bxb5 {[%clk 0:02:53.1]} 6... Qa5+ {[%clk 0:02:55.4]}
7. Nc3 {[%clk 0:02:51.9]} 7... Ba6 {[%clk 0:02:51.9]} 8. Bxa6 {[%clk 0:02:39]}
8... Qxa6 {[%clk 0:02:52.8]} 9. Nge2 {[%clk 0:02:36.8]} 9... g6 {[%clk
0:02:53.2]} 10. O-O {[%clk 0:02:35.5]} 10... Bg7 {[%clk 0:02:53.9]} 11. a4
{[%clk 0:02:34.8]} 11... O-O {[%clk 0:02:45.2]} 12. Nb5 {[%clk 0:02:34.5]} 12...
d6 {[%clk 0:02:44.4]} 13. Nc7 {[%clk 0:02:32.5]} 13... Qb7 {[%clk 0:02:42.8]}
14. Nxa8 {[%clk 0:02:32.2]} 14... Qxa8 {[%clk 0:02:43.7]} 15. Nc3 {[%clk
0:02:27.5]} 15... Na6 {[%clk 0:02:44]} 16. e4 {[%clk 0:02:19.6]} 16... Nb4
{[%clk 0:02:43.9]} 17. Qe2 {[%clk 0:02:19]} 17... Nd7 {[%clk 0:02:29.7]} 18. Nb5
{[%clk 0:02:06.6]} 18... Kh8 {[%clk 0:02:21.9]} 19. Bg5 {[%clk 0:01:57.3]} 19...
Qd8 {[%clk 0:01:58.7]} 20. Ra3 {[%clk 0:01:51.3]} 20... f6 {[%clk 0:01:09.9]}
21. Bc1 {[%clk 0:01:47.5]} 21... f5 {[%clk 0:01:08.4]} 22. Rh3 {[%clk
0:01:26.3]} 22... fxe4 {[%clk 0:01:03.6]} 23. Qxe4 {[%clk 0:01:23.4]} 23... Rf5
{[%clk 0:00:57.3]} 24. Qh4 {[%clk 0:00:53]} 24... Rh5 {[%clk 0:00:50]} 25. Qg4
{[%clk 0:00:49.3]} 25... Ne5 {[%clk 0:00:37.8]} 26. Qe6 {[%clk 0:00:47.2]} 26...
Rxh3 {[%clk 0:00:35.7]} 27. Qxh3 {[%clk 0:00:46.5]} 27... Nxd5 {[%clk
0:00:35.5]} 28. Bh6 {[%clk 0:00:41.2]} 28... Bf6 {[%clk 0:00:35.2]} 29. Qe6
{[%clk 0:00:33.2]} 29... Nb4 {[%clk 0:00:24.2]} 30. Rd1 {[%clk 0:00:32.2]} 30...
Qg8 {[%clk 0:00:20.3]} 31. Qxg8+ {[%clk 0:00:30.7]} 31... Kxg8 {[%clk
0:00:21.2]} 32. a5 {[%clk 0:00:29.5]} 32... Na6 {[%clk 0:00:21.1]} 33. Bd2
{[%clk 0:00:27.2]} 33... Kf7 {[%clk 0:00:21.5]} 34. Bc3 {[%clk 0:00:27.2]} 34...
Nc6 {[%clk 0:00:20.8]} 35. Nxd6+ {[%clk 0:00:24.5]} 35... exd6 {[%clk
0:00:18.9]} 36. Rxd6 {[%clk 0:00:24.6]} 36... Ncb8 {[%clk 0:00:15.3]} 37. Rxf6+
{[%clk 0:00:23.8]} 37... Ke7 {[%clk 0:00:14.5]} 38. Rb6 {[%clk 0:00:23.3]} 38...
Kd7 {[%clk 0:00:14.4]} 39. Be5 {[%clk 0:00:23.4]} 1-0

[Event "Early-Titled-Tuesday-Blitz-January-16-2024"]
[Site "Chess.com"]
[Date "2024.01.16"]
[Round "3"]
[White "SujanaLohani"]
[Black "supereagles1201"]
[Result "0-1"]
[WhiteElo "1986"]
[BlackElo "2370"]
[TimeControl "180+1"]
[EndTime "8:28:58 PST"]
[Termination "supereagles1201 won on time"]

1. d4 {[%clk 0:03:00.9]} 1... d5 {[%clk 0:02:59.6]} 2. Nf3 {[%clk 0:02:57]} 2...
Nf6 {[%clk 0:02:59]} 3. c4 {[%clk 0:02:55.2]} 3... c6 {[%clk 0:02:58.8]} 4. cxd5
{[%clk 0:02:53.5]} 4... cxd5 {[%clk 0:02:58.4]} 5. g3 {[%clk 0:02:54.4]} 5...
Nc6 {[%clk 0:02:58.1]} 6. Bg2 {[%clk 0:02:55.3]} 6... Bf5 {[%clk 0:02:58.3]} 7.
O-O {[%clk 0:02:55.7]} 7... e6 {[%clk 0:02:58.5]} 8. a3 {[%clk 0:02:53.9]} 8...
h6 {[%clk 0:02:57.8]} 9. b4 {[%clk 0:02:52.2]} 9... Be7 {[%clk 0:02:57.1]} 10.
Nc3 {[%clk 0:02:39.9]} 10... O-O {[%clk 0:02:56.6]} 11. Bf4 {[%clk 0:02:37.8]}
11... Rc8 {[%clk 0:02:55.7]} 12. Rc1 {[%clk 0:02:37.1]} 12... Ne4 {[%clk
0:02:53.1]} 13. Qb3 {[%clk 0:02:35]} 13... Bf6 {[%clk 0:02:35.8]} 14. e3 {[%clk
0:02:29.3]} 14... g5 {[%clk 0:02:18]} 15. Be5 {[%clk 0:02:27.3]} 15... Be7
{[%clk 0:02:18]} 16. h3 {[%clk 0:01:47.5]} 16... Nxc3 {[%clk 0:02:08]} 17. Rxc3
{[%clk 0:01:46.1]} 17... Be4 {[%clk 0:02:08.2]} 18. g4 {[%clk 0:01:44.1]} 18...
Bxf3 {[%clk 0:02:06.9]} 19. Bxf3 {[%clk 0:01:42.3]} 19... Nxe5 {[%clk
0:02:07.3]} 20. dxe5 {[%clk 0:01:42]} 20... Qb6 {[%clk 0:01:48.8]} 21. Rd1
{[%clk 0:01:39.9]} 21... Rc6 {[%clk 0:01:38]} 22. e4 {[%clk 0:01:23]} 22... d4
{[%clk 0:01:25.3]} 23. Rcd3 {[%clk 0:01:21.1]} 23... Rd8 {[%clk 0:01:18.1]} 24.
Qb2 {[%clk 0:01:11.6]} 24... Rc4 {[%clk 0:01:16.6]} 25. Be2 {[%clk 0:01:10.2]}
25... Qc7 {[%clk 0:01:02]} 26. Rxd4 {[%clk 0:01:00.3]} 26... Rcxd4 {[%clk
0:00:50.5]} 27. Rxd4 {[%clk 0:00:59.1]} 27... Rxd4 {[%clk 0:00:49.9]} 28. Qxd4
{[%clk 0:00:58.9]} 28... Qc1+ {[%clk 0:00:50.5]} 29. Kg2 {[%clk 0:00:57.6]}
29... Qxa3 {[%clk 0:00:49.1]} 30. b5 {[%clk 0:00:55.7]} 30... Kg7 {[%clk
0:00:42.8]} 31. Qd7 {[%clk 0:00:48.4]} 31... Bc5 {[%clk 0:00:40]} 32. Qxb7
{[%clk 0:00:42.2]} 32... Qb2 {[%clk 0:00:38.7]} 33. Kf3 {[%clk 0:00:39.5]} 33...
Qc3+ {[%clk 0:00:37.4]} 34. Kg2 {[%clk 0:00:38.7]} 34... Qd4 {[%clk 0:00:34.9]}
35. Bd1 {[%clk 0:00:05.4]} 35... Qxd1 {[%clk 0:00:34.1]} 36. Qc6 {[%clk
0:00:03.9]} 36... Qd4 {[%clk 0:00:33.2]} 0-1

[Event "Early-Titled-Tuesday-Blitz-January-16-2024"]
[Site "Chess.com"]
[Date "2024.01.16"]
[Round "3"]
[White "queen_iryna"]
[Black "maurovargas01"]
[Result "1-0"]
[WhiteElo "2352"]
[BlackElo "1854"]
[TimeControl "180+1"]
[EndTime "8:28:59 PST"]
[Termination "queen_iryna won on time"]

1. e4 {[%clk 0:03:00.9]} 1... d5 {[%clk 0:02:58.4]} 2. exd5 {[%clk 0:03:00.6]}
2... Qxd5 {[%clk 0:02:59.3]} 3. Nc3 {[%clk 0:03:01.1]} 3... Qa5 {[%clk
0:02:59.6]} 4. d4 {[%clk 0:03:01.4]} 4... c6 {[%clk 0:03:00]} 5. Bc4 {[%clk
0:03:01.2]} 5... Nf6 {[%clk 0:02:59.9]} 6. Ne2 {[%clk 0:02:59]} 6... Bf5 {[%clk
0:02:59.4]} 7. Bd2 {[%clk 0:02:58.1]} 7... Qc7 {[%clk 0:02:59]} 8. Ng3 {[%clk
0:02:56.9]} 8... Bg6 {[%clk 0:02:57.8]} 9. O-O {[%clk 0:02:54.3]} 9... e6 {[%clk
0:02:57.4]} 10. Qe2 {[%clk 0:02:43.4]} 10... Bd6 {[%clk 0:02:54.9]} 11. Bg5
{[%clk 0:02:31]} 11... Nbd7 {[%clk 0:02:49.6]} 12. Rad1 {[%clk 0:02:09.8]} 12...
h6 {[%clk 0:02:48.7]} 13. Bc1 {[%clk 0:02:02.7]} 13... h5 {[%clk 0:02:18.1]} 14.
Rfe1 {[%clk 0:01:59]} 14... h4 {[%clk 0:02:17.7]} 15. Nf1 {[%clk 0:01:59]} 15...
Bh5 {[%clk 0:02:09]} 16. f3 {[%clk 0:01:57.9]} 16... h3 {[%clk 0:02:04.4]} 17.
g3 {[%clk 0:01:56.4]} 17... O-O-O {[%clk 0:01:59.4]} 18. Ne4 {[%clk 0:01:28.9]}
18... Be7 {[%clk 0:01:50.9]} 19. Bf4 {[%clk 0:01:23.2]} 19... Qb6 {[%clk
0:01:46.3]} 20. c3 {[%clk 0:01:16.9]} 20... e5 {[%clk 0:01:44.2]} 21. Nxf6
{[%clk 0:01:08.2]} 21... Bxf6 {[%clk 0:01:35.7]} 22. Be3 {[%clk 0:01:02]} 22...
e4 {[%clk 0:01:20]} 23. d5 {[%clk 0:00:56.6]} 23... c5 {[%clk 0:01:14.1]} 24.
Qf2 {[%clk 0:00:49.5]} 24... Bxf3 {[%clk 0:01:10.7]} 25. Be2 {[%clk 0:00:46.3]}
25... Bg2 {[%clk 0:01:02.2]} 26. b4 {[%clk 0:00:43.7]} 26... Be7 {[%clk
0:00:59.4]} 27. Bg4 {[%clk 0:00:41.5]} 27... Rhf8 {[%clk 0:00:55.7]} 28. bxc5
{[%clk 0:00:40.9]} 28... Bxc5 {[%clk 0:00:47.5]} 29. Bxc5 {[%clk 0:00:38.9]}
29... Qxc5 {[%clk 0:00:45.9]} 30. Qxc5+ {[%clk 0:00:38.8]} 30... Kb8 {[%clk
0:00:43.4]} 31. Bxd7 {[%clk 0:00:38.4]} 31... f5 {[%clk 0:00:20]} 32. Qd6+
{[%clk 0:00:36.2]} 32... Ka8 {[%clk 0:00:19.2]} 33. Rb1 {[%clk 0:00:31.9]} 33...
f4 {[%clk 0:00:17]} 34. Qc7 {[%clk 0:00:31]} 34... Rb8 {[%clk 0:00:14.2]} 35.
Bc6 {[%clk 0:00:29.7]} 35... f3 {[%clk 0:00:01.9]} 36. Bxb7+ {[%clk 0:00:29.2]}
1-0

[Event "Early-Titled-Tuesday-Blitz-January-16-2024"]
[Site "Chess.com"]
[Date "2024.01.16"]
[Round "3"]
[White "Lennis93"]
[Black "Polish_fighter3000"]
[Result "0-1"]
[WhiteElo "2776"]
[BlackElo "3073"]
[TimeControl "180+1"]
[EndTime "8:29:03 PST"]
[Termination "Polish_fighter3000 won by resignation"]

1. d4 {[%clk 0:03:00.9]} 1... Nf6 {[%clk 0:02:57.9]} 2. c4 {[%clk 0:03:00.8]}
2... g6 {[%clk 0:02:58.5]} 3. Nc3 {[%clk 0:02:56.9]} 3... d5 {[%clk 0:02:59]} 4.
Nf3 {[%clk 0:02:56.3]} 4... Bg7 {[%clk 0:02:58.7]} 5. Bf4 {[%clk 0:02:55.9]}
5... O-O {[%clk 0:02:53.7]} 6. Rc1 {[%clk 0:02:55.3]} 6... dxc4 {[%clk 0:02:38]}
7. e3 {[%clk 0:02:55.2]} 7... Be6 {[%clk 0:02:36]} 8. Ng5 {[%clk 0:02:52.7]}
8... Bd5 {[%clk 0:02:36.4]} 9. e4 {[%clk 0:02:46.4]} 9... h6 {[%clk 0:02:33.6]}
10. Nxd5 {[%clk 0:02:36.1]} 10... Nxd5 {[%clk 0:02:22.2]} 11. exd5 {[%clk
0:02:30.4]} 11... hxg5 {[%clk 0:02:22.8]} 12. Bxg5 {[%clk 0:02:22]} 12... Qxd5
{[%clk 0:02:23.3]} 13. Be3 {[%clk 0:02:12.9]} 13... b5 {[%clk 0:02:22.6]} 14.
Be2 {[%clk 0:02:13.1]} 14... Nc6 {[%clk 0:02:22.4]} 15. Bf3 {[%clk 0:02:13.2]}
15... Qd6 {[%clk 0:02:22.8]} 16. O-O {[%clk 0:02:09.6]} 16... Rad8 {[%clk
0:02:18.4]} 17. b3 {[%clk 0:02:08.6]} 17... Nxd4 {[%clk 0:02:11.1]} 18. Bxd4
{[%clk 0:02:02.1]} 18... Bxd4 {[%clk 0:02:04.3]} 19. bxc4 {[%clk 0:02:02.2]}
19... bxc4 {[%clk 0:02:05.2]} 20. Rxc4 {[%clk 0:01:54.9]} 20... Bxf2+ {[%clk
0:02:02.7]} 21. Kh1 {[%clk 0:01:54.3]} 21... Qxd1 {[%clk 0:02:01.5]} 22. Bxd1
{[%clk 0:01:51.6]} 22... Bb6 {[%clk 0:01:56.2]} 23. Bb3 {[%clk 0:01:49.6]} 23...
Kg7 {[%clk 0:01:54.2]} 24. Rcf4 {[%clk 0:01:45.9]} 24... e6 {[%clk 0:01:47.1]}
25. g3 {[%clk 0:01:38.9]} 25... Rd6 {[%clk 0:01:46.2]} 26. h4 {[%clk 0:01:34.3]}
26... f5 {[%clk 0:01:41.2]} 27. Re1 {[%clk 0:01:32.1]} 27... Kf6 {[%clk
0:01:36.8]} 28. g4 {[%clk 0:01:31.2]} 28... g5 {[%clk 0:01:21.8]} 29. Rf3 {[%clk
0:00:48]} 29... gxh4 {[%clk 0:01:12.9]} 30. gxf5 {[%clk 0:00:47.8]} 30... exf5
{[%clk 0:01:12.8]} 31. Rxf5+ {[%clk 0:00:43.7]} 31... Kxf5 {[%clk 0:01:13.7]}
32. Rf1+ {[%clk 0:00:44]} 32... Kg4 {[%clk 0:01:11.6]} 33. Rxf8 {[%clk
0:00:44.9]} 33... Be3 {[%clk 0:01:04.5]} 34. Rg8+ {[%clk 0:00:33.3]} 34... Kf3
{[%clk 0:00:56]} 35. Kh2 {[%clk 0:00:28.2]} 35... Bf4+ {[%clk 0:00:53.4]} 36.
Kh3 {[%clk 0:00:27.8]} 36... Rd2 {[%clk 0:00:51.3]} 37. Rg2 {[%clk 0:00:19.9]}
37... Rxg2 {[%clk 0:00:51.9]} 38. Bd5+ {[%clk 0:00:20.1]} 38... Ke3 {[%clk
0:00:52.7]} 39. Bxg2 {[%clk 0:00:20.6]} 39... Bg3 {[%clk 0:00:53.5]} 40. Bc6
{[%clk 0:00:17.2]} 40... Kd4 {[%clk 0:00:52.9]} 41. Kg2 {[%clk 0:00:16.8]} 41...
Kc5 {[%clk 0:00:53.3]} 42. Bd7 {[%clk 0:00:16.4]} 42... Kd6 {[%clk 0:00:52.5]}
43. Bc8 {[%clk 0:00:15.4]} 43... c5 {[%clk 0:00:53.4]} 44. Kf3 {[%clk
0:00:15.7]} 44... c4 {[%clk 0:00:51.5]} 45. Ke4 {[%clk 0:00:16.3]} 45... c3
{[%clk 0:00:51.9]} 46. Kd3 {[%clk 0:00:16.3]} 46... Be5 {[%clk 0:00:51.5]} 47.
Bf5 {[%clk 0:00:15.8]} 47... Ke7 {[%clk 0:00:50.9]} 48. Ke4 {[%clk 0:00:15.9]}
48... c2 {[%clk 0:00:49.8]} 49. Kxe5 {[%clk 0:00:11.9]} 49... c1=Q {[%clk
0:00:50.7]} 50. Be4 {[%clk 0:00:09.4]} 50... a6 {[%clk 0:00:48.6]} 51. Bd3
{[%clk 0:00:09.2]} 51... a5 {[%clk 0:00:48.7]} 52. Kd4 {[%clk 0:00:08.6]} 52...
a4 {[%clk 0:00:49]} 53. Bf5 {[%clk 0:00:08.8]} 53... a3 {[%clk 0:00:49.5]} 54.
Ke5 {[%clk 0:00:08.7]} 54... Kf8 {[%clk 0:00:49.7]} 0-1

[Event "Early-Titled-Tuesday-Blitz-January-16-2024"]
[Site "Chess.com"]
[Date "2024.01.16"]
[Round "3"]
[White "tomesao"]
[Black "bascheyaro"]
[Result "0-1"]
[WhiteElo "2507"]
[BlackElo "2804"]
[TimeControl "180+1"]
[EndTime "8:29:03 PST"]
[Termination "bascheyaro won by checkmate"]

1. d4 {[%clk 0:03:00.9]} 1... d5 {[%clk 0:03:00]} 2. Nf3 {[%clk 0:03:01.3]} 2...
Nf6 {[%clk 0:02:59.7]} 3. Bf4 {[%clk 0:03:01.7]} 3... Bf5 {[%clk 0:02:59.6]} 4.
e3 {[%clk 0:03:01]} 4... e6 {[%clk 0:03:00.2]} 5. c4 {[%clk 0:03:01.2]} 5...
Bxb1 {[%clk 0:03:00.3]} 6. Rxb1 {[%clk 0:03:00.6]} 6... Bb4+ {[%clk 0:03:00.6]}
7. Ke2 {[%clk 0:02:58.8]} 7... Bd6 {[%clk 0:03:00.9]} 8. Bxd6 {[%clk 0:02:49.3]}
8... Qxd6 {[%clk 0:03:01.8]} 9. c5 {[%clk 0:02:48.8]} 9... Qd8 {[%clk
0:03:01.3]} 10. Ne5 {[%clk 0:02:46]} 10... O-O {[%clk 0:03:00.6]} 11. f3 {[%clk
0:02:45.9]} 11... Nbd7 {[%clk 0:03:00.4]} 12. Nxd7 {[%clk 0:02:44.2]} 12... Qxd7
{[%clk 0:03:00.6]} 13. Kf2 {[%clk 0:02:44.6]} 13... b6 {[%clk 0:02:59.4]} 14.
Rc1 {[%clk 0:02:41.9]} 14... Qe7 {[%clk 0:02:55.1]} 15. Be2 {[%clk 0:02:09.7]}
15... e5 {[%clk 0:02:54.5]} 16. Qd2 {[%clk 0:02:06.2]} 16... exd4 {[%clk
0:02:41]} 17. Qxd4 {[%clk 0:02:05.1]} 17... Rfd8 {[%clk 0:02:38.5]} 18. Rhd1
{[%clk 0:02:03.3]} 18... g6 {[%clk 0:02:25.7]} 19. b4 {[%clk 0:02:00.3]} 19...
Ne8 {[%clk 0:02:25.2]} 20. Rc2 {[%clk 0:01:52.4]} 20... Ng7 {[%clk 0:02:25]} 21.
Rdc1 {[%clk 0:01:41.5]} 21... Nf5 {[%clk 0:02:23.8]} 22. Qf4 {[%clk 0:01:40.9]}
22... Re8 {[%clk 0:02:22.5]} 23. cxb6 {[%clk 0:01:35.3]} 23... cxb6 {[%clk
0:02:08.8]} 24. g4 {[%clk 0:01:24.3]} 24... Qh4+ {[%clk 0:02:07.8]} 25. Kg1
{[%clk 0:01:20.6]} 25... Rxe3 {[%clk 0:01:54]} 26. Rd1 {[%clk 0:00:43.3]} 26...
Rae8 {[%clk 0:01:51.6]} 27. Bf1 {[%clk 0:00:39.6]} 27... d4 {[%clk 0:01:39.6]}
28. Rc7 {[%clk 0:00:29.6]} 28... Re1 {[%clk 0:01:17.9]} 29. Rxe1 {[%clk
0:00:19.3]} 29... Rxe1 {[%clk 0:01:18.8]} 30. Qd2 {[%clk 0:00:18.9]} 30... Ne3
{[%clk 0:00:15.2]} 31. Rc8+ {[%clk 0:00:18.1]} 31... Kg7 {[%clk 0:00:15.5]} 32.
Qxd4+ {[%clk 0:00:18]} 32... Qf6 {[%clk 0:00:07.3]} 33. Rg8+ {[%clk 0:00:05.4]}
33... Kxg8 {[%clk 0:00:07.2]} 34. Qxf6 {[%clk 0:00:06.3]} 34... Rxf1# {[%clk
0:00:07.6]} 0-1

[Event "Early-Titled-Tuesday-Blitz-January-16-2024"]
[Site "Chess.com"]
[Date "2024.01.16"]
[Round "3"]
[White "Alexchess1984"]
[Black "Maxfan2008"]
[Result "0-1"]
[WhiteElo "2678"]
[BlackElo "2499"]
[TimeControl "180+1"]
[EndTime "8:29:03 PST"]
[Termination "Maxfan2008 won by resignation"]

1. e4 {[%clk 0:03:00.9]} 1... c5 {[%clk 0:02:57.1]} 2. Nf3 {[%clk 0:02:59.9]}
2... d6 {[%clk 0:02:55.6]} 3. d4 {[%clk 0:02:59.7]} 3... cxd4 {[%clk 0:02:54.6]}
4. Qxd4 {[%clk 0:03:00.6]} 4... Nc6 {[%clk 0:02:53.7]} 5. Bb5 {[%clk 0:02:59.6]}
5... Bd7 {[%clk 0:02:52.1]} 6. Bxc6 {[%clk 0:02:59.6]} 6... Bxc6 {[%clk
0:02:53]} 7. Nc3 {[%clk 0:03:00]} 7... Nf6 {[%clk 0:02:52.7]} 8. Bg5 {[%clk
0:03:00]} 8... e6 {[%clk 0:02:51.5]} 9. O-O-O {[%clk 0:02:58.6]} 9... Be7 {[%clk
0:02:51.1]} 10. Rhe1 {[%clk 0:02:58]} 10... O-O {[%clk 0:02:50.8]} 11. Kb1
{[%clk 0:02:57.6]} 11... h6 {[%clk 0:02:50.7]} 12. Bh4 {[%clk 0:02:57.1]} 12...
Qa5 {[%clk 0:02:49.1]} 13. Qd2 {[%clk 0:02:55.1]} 13... Qa6 {[%clk 0:02:42.1]}
14. Nd4 {[%clk 0:02:52.2]} 14... b5 {[%clk 0:02:33.6]} 15. Qd3 {[%clk
0:02:46.4]} 15... Rab8 {[%clk 0:02:24.1]} 16. f3 {[%clk 0:02:45.7]} 16... Rfc8
{[%clk 0:02:00.6]} 17. g4 {[%clk 0:02:42.4]} 17... Qb7 {[%clk 0:01:48.8]} 18. g5
{[%clk 0:02:14.3]} 18... hxg5 {[%clk 0:01:46.8]} 19. Bxg5 {[%clk 0:02:14.8]}
19... Nxe4 {[%clk 0:00:58.3]} 20. Bxe7 {[%clk 0:01:26.7]} 20... Nxc3+ {[%clk
0:00:57.1]} 21. Qxc3 {[%clk 0:01:27]} 21... Bd5 {[%clk 0:00:54.8]} 22. Qe3
{[%clk 0:01:04.4]} 22... Qxe7 {[%clk 0:00:51.5]} 23. Nf5 {[%clk 0:00:47.9]}
23... Qc7 {[%clk 0:00:47.6]} 24. c3 {[%clk 0:00:27.9]} 24... Bxa2+ {[%clk
0:00:35.4]} 25. Kxa2 {[%clk 0:00:26.4]} 25... exf5 {[%clk 0:00:35.6]} 26. Rd4
{[%clk 0:00:18.6]} 26... Qa5+ {[%clk 0:00:19.9]} 27. Kb1 {[%clk 0:00:18.4]}
27... b4 {[%clk 0:00:20.3]} 28. cxb4 {[%clk 0:00:17.7]} 28... Rxb4 {[%clk
0:00:18.6]} 29. Qd2 {[%clk 0:00:18.1]} 29... Rcb8 {[%clk 0:00:13]} 30. Rxb4
{[%clk 0:00:15.2]} 30... Rxb4 {[%clk 0:00:12.8]} 31. Re8+ {[%clk 0:00:14.3]}
31... Kh7 {[%clk 0:00:12.7]} 32. Qg5 {[%clk 0:00:14.1]} 32... Rxb2+ {[%clk
0:00:07]} 33. Kxb2 {[%clk 0:00:13.2]} 33... Qb5+ {[%clk 0:00:07.5]} 34. Kc3
{[%clk 0:00:13.2]} 34... Qxe8 {[%clk 0:00:08.4]} 35. Qxf5+ {[%clk 0:00:13.7]}
35... Kg8 {[%clk 0:00:08.9]} 36. Qd5 {[%clk 0:00:13.6]} 36... Qe5+ {[%clk
0:00:09.3]} 37. Qxe5 {[%clk 0:00:13.8]} 37... dxe5 {[%clk 0:00:10.2]} 0-1